Cogmind - Beta 16 @@@ ROGUE MODE // 2025.11.09 @ 22:31:54 Player: RHAHI Result: Destroyed by Y-54 Guardian with Gatling Laser Performance ------------- Evolutions (0) 0 Regions Visited (4) 800 Robots Destroyed (50) 250 Value Destroyed (1288) 1288 Prototype IDs (14) 280 Alien Tech Used (0) 0 Bonus (-103) -103 TOTAL SCORE: 2515 Bonus ------- Friendly Fire -103 Cogmind --------- Core Integrity 0/250 Matter 7/300 Energy 198/200 System Corruption 0% Temperature Cool (6) Movement Rolling (90) Location -7/Recycling Parts ------- > --- POWER (1) -------- Subdweller Power Source > --- PROPULSION (2) --- Wheel Compact Wheel > --- UTILITY (2) ------ (None) > --- WEAPON (2) ------- Subdweller Beam Cannon > --- INVENTORY (5) ---- Spiked Treads Subdweller Optics Scrap Shield Battle Rifle Peak State ------------ > --- POWER ------------ Subdweller Power Source Makeshift Power Source > --- PROPULSION ------- Spiked Treads Spiked Treads Aluminum Leg Carbon-fiber Leg > --- UTILITY ---------- Scrap Shield Tower Shield > --- WEAPON ----------- Subdweller Beam Cannon Battle Cannon Battle Cannon Battle Cannon > --- INVENTORY -------- Spiked Treads Makeshift Leg Experimental Sensor Array Grenade Launcher Subdweller Shrapnel Launcher [Rating: 47] Favorites ----------- Power Subdweller Power Source Engine Subdweller Power Source Propulsion Spiked Treads Treads Spiked Treads Leg Carbon-fiber Leg Wheel Compact Wheel Utility Scrap Shield Device Improved Terrain Scanner Storage Humpback Protection Scrap Shield Weapon Battle Cannon Energy Gun Beamcaster Energy Cannon Subdweller Beam Cannon Ballistic Gun Light Assault Rifle Ballistic Cannon Battle Cannon Launcher Grenade Launcher Special Weapon Mining Laser Build | -11 -10 -10 -10 -7 ------- Run | Yrd Mat Min Sub Rec Slots Evolved . | . . . . . Power . | . . . . . Propulsion . | . . . . . Utility . | . . . . . Weapon . | . . . . . Parts Attached 54 | 7 9 3 35 . Power 11 | 1 1 . 9 . Engine 11 | 1 1 . 9 . Core . | . . . . . Reactor . | . . . . . Propulsion 12 | 2 2 . 8 . Treads 6 | 2 1 . 3 . Leg 3 | . . . 3 . Wheel 3 | . 1 . 2 . Hover . | . . . . . Flight . | . . . . . Utility 14 | 2 5 1 6 . Device 6 | 1 3 . 2 . Storage 5 | 1 2 1 1 . Processor . | . . . . . Hackware . | . . . . . Protection 3 | . . . 3 . Artifact . | . . . . . Weapon 17 | 2 1 2 12 . Energy Gun 2 | 1 . . 1 . Energy Cannon 1 | . . . 1 . Ballistic Gun 5 | 1 . 1 3 . Ballistic Cannon 5 | . . . 5 . Launcher 3 | . . 1 2 . Special Weapon 1 | . 1 . . . Impact Weapon . | . . . . . Slashing Weapon . | . . . . . Piercing Weapon . | . . . . . Special Melee Weapon . | . . . . . Unidentified Prototypes . | . . . . . Parts Lost 11 | . 2 . 8 1 Power 2 | . . . 2 . Propulsion 4 | . 1 . 3 . Utility 1 | . . . 1 . Weapon 4 | . 1 . 2 1 Highest Loss Streak 2 | . 1 . 2 1 To Critical Strikes . | . . . . . Average Backups 8 | 6 8 9 8 13 Power . | . . 1 . . Propulsion 2 | 2 1 1 2 2 Utility 2 | . 4 6 2 4 Weapon 3 | 1 1 1 3 5 Tool/Special . | . . . . . Unused Backups 34 | 1 3 2 18 10 Power 2 | . . . 1 1 Propulsion 6 | 1 2 . 2 1 Utility 11 | . . 2 6 3 Weapon 14 | . 1 . 9 4 Tool/Special 1 | . . . . 1 Average Slot Usage (%) 85 | . 95 88 85 85 Engine 13 | . 14 14 13 14 Treads 11 | . 25 28 10 . Leg 13 | . . . 14 . Wheel 2 | . . . 2 28 Device 3 | . 15 14 2 . Storage 3 | . 12 14 3 14 Protection 8 | . . . 9 . Energy Gun 2 | . 13 11 1 . Energy Cannon 6 | . . . 6 14 Ballistic Gun 1 | . 10 2 1 . Ballistic Cannon 10 | . . . 11 . Launcher 5 | . . 2 5 14 Peak Build Rating 47 | 8 10 10 47 32 Average Rating 32 | 6 7 8 34 28 On Entrance 11 | . 8 7 10 32 Avg Prop Armor Cover (%) 3 | 32 11 . 3 . Naked Turns . | . . . . . Heaviest Build 216 | 13 48 22 216 216 Greatest Support 40 | 40 40 40 40 26 Greatest Overweight (x) 13 | . 2 . 13 8 Average Overweight (x) 3 | . . . 3 5 Largest Inventory Capacity 35 | 8 20 10 35 35 Average Capacity 10 | 7 10 10 10 30 Most Carried 35 | 8 10 10 35 35 Average Carried 9 | 6 8 9 9 30 Final Capacity 35 | 8 10 10 35 5 Final Carried 35 | 8 9 10 35 5 Class Distribution -------------------- 52% | Subdweller-Tank 16% | Mutant 15% | Hauler-Mutant 8% | Subdweller-Mutant 6% | Scavenger-Mutant Dominant Class ---------------- Mutant | -10/Materials Mutant | -10/Mines Subdweller-Tank | -10/Subcaves Hauler-Mutant | -7/Recycling Resources | -11 -10 -10 -10 -7 ----------- Run | Yrd Mat Min Sub Rec Matter Collected 2814 | 345 224 157 2088 . Remotely . | . . . . . Salvage Created 1373 | 216 338 13 806 . Parts 87 | 18 16 5 48 . Haulers Intercepted 1 | . 1 . . . Recyclers Shooed 1 | 1 . . . . Parts Field Recycled . | . . . . . Retrieved Matter . | . . . . . Parts Self-Destructed 15 | . . . 15 . Prevented . | . . . . . Parts Restored . | . . . . . Kills | -11 -10 -10 -10 -7 ------- Run | Yrd Mat Min Sub Rec Combat Hostiles Destroyed 37 | . 7 3 27 . Guns 17 | . 6 . 11 . Cannons 17 | . 1 . 16 . AOE 3 | . . 3 . . Classes Destroyed 10 | 2 4 . 4 . Worker 2 | 1 1 . . . Tunneler 9 | 9 . . . . Hauler 1 | . 1 . . . Watcher 1 | . 1 . . . Swarmer 10 | . 1 3 6 . Grunt 7 | . 6 . 1 . Sentry 1 | . . . 1 . Artisan 1 | . . . 1 . Cobbler 1 | . . . 1 . Subdweller 19 | . . . 19 . Best Kill Streak 4 | 3 2 3 4 . Combat Bots Only 4 | . 1 3 4 . Max Kills in Single Turn 2 | 1 1 2 2 . Gunslinging 1 | . . . 1 . Exploded 2 | . . 2 . . Melee . | . . . . . Uniques/NPCs Destroyed . | . . . . . Combat | -11 -10 -10 -10 -7 -------- Run | Yrd Mat Min Sub Rec Hostile Shots Fired 217 | . 37 3 138 39 Missed 67 | . 8 . 43 16 Hits 150 | . 29 3 95 23 Projectile 150 | . 29 3 95 23 AOE 3 | . 1 . 2 . Critical Strikes 2 | . . . 2 . Damage Taken 2747 | . 487 48 2052 160 Core 252 | . 60 . 149 43 Absorbed by Shields . | . . . . . Regen/Repaired (Parts) 50 | . 50 . . . Core Remaining (%) 100 | 100 . . . . Volleys Fired 292 | 25 45 3 216 3 Largest 4 | 2 2 2 4 2 Hottest 179 | 70 150 83 179 110 Shots Fired 455 | 49 84 4 315 3 Gun 198 | 49 76 1 72 . Cannon 142 | . . . 140 2 Launcher 107 | . . 3 103 1 Special 8 | . 8 . . . Kinetic 226 | 25 37 . 164 . Thermal 132 | 24 47 1 58 2 Explosive 97 | . . 3 93 1 Electromagnetic . | . . . . . Robot Hit Streak 25 | 6 9 1 25 6 Robot Miss Streak 4 | 3 4 1 4 . Penetration Max . | . . . . . Secondary Targets 1 | . . . 1 . Max Gunslinging Chain 1 | . . . 1 . Shots Hit Robots 220 | 34 46 1 136 3 Core Hits 80 | 11 20 2 46 1 Critical Kills . | . . . . . Critical Parts Destroyed . | . . . . . Critical Strikes 10 | 2 . . 8 . Burn 5 | 2 . . 3 . Blast 5 | . . . 5 . Melee Attacks . | . . . . . Impact . | . . . . . Slashing . | . . . . . Piercing . | . . . . . Sneak Attacks . | . . . . . Combat Hostiles . | . . . . . Follow-up Attacks . | . . . . . Damage Inflicted 3967 | 436 607 183 2666 75 Guns 1773 | 436 580 . 757 . Cannons 1964 | . . . 1909 55 Explosions 203 | . . 183 . 20 Melee . | . . . . . Ramming 3 | . 3 . . . Kinetic 2284 | 222 262 . 1800 . Thermal 1477 | 214 342 . 866 55 Explosive 203 | . . 183 . 20 Electromagnetic . | . . . . . Impact . | . . . . . Slashing . | . . . . . Piercing . | . . . . . Highest Corruption . | . . . . . Average Corruption . | . . . . . Corruption Purged . | . . . . . Corruption Blocked . | . . . . . Overload Shots . | . . . . . Overflow Damage 66 | . . 50 16 . Projectiles 16 | . . . 16 . Explosions 50 | . . 50 . . Melee . | . . . . . Knockbacks 19 | . . . 19 . Impact . | . . . . . Kinetic 19 | . . . 19 . Secondary . | . . . . . Self-Inflicted Damage 182 | . . 25 157 . Shots 10 | . . 1 9 . Rammed 1 | . 1 . . . Targets Rammed 1 | . 1 . . . Kicked . | . . . . . Crushed . | . . . . . Highest Temperature 271 | 45 186 21 271 111 Average Temperature 36 | 15 35 11 54 55 Received Heat Transfer 964 | . 192 . 718 54 Siege Activations . | . . . . . Martial Activations . | . . . . . Shielding Activations . | . . . . . Robots Disrupted . | . . . . . Combat Hostiles . | . . . . . Robots Corrupted . | . . . . . Combat Hostiles . | . . . . . Parts Fried . | . . . . . Impact Corruptions . | . . . . . Robots Melted . | . . . . . Combat Hostiles . | . . . . . Parts Melted 4 | 2 1 . 1 . Heat Transferred 3380 | 777 975 . 1554 74 Parts Sabotaged . | . . . . . Parts Stolen . | . . . . . Parts Stripped . | . . . . . Power Chain Reactions . | . . . . . Alert | -11 -10 -10 -10 -7 ------- Run | Yrd Mat Min Sub Rec Maximum Alert Level . | . . . . . Low Security (%) 100 | 100 100 100 . 100 Level 1 . | . . . . . Level 2 . | . . . . . Level 3 . | . . . . . Level 4 . | . . . . . Level 5 . | . . . . . High Security . | . . . . . Max Security . | . . . . . Peak Influence 152 | 10 152 102 . 28 Initial 51 | . . 51 . 28 Average 23 | 1 35 17 . 21 Influence Increases 965 | 50 378 110 414 13 Destroy 0b10 Robot/C 360 | . 140 60 160 . Destroy 0b10 Robot/NC 65 | 50 15 . . . Destroy Leader 74 | . 54 10 10 . Allied During Kill 4 | . . . 4 . Successful Hack 48 | . 42 . . 6 Select Force Hacks 60 | . 60 . . . Disable Machine 15 | . . 15 . . Destroy Structure 39 | . 7 25 . 7 Lose Combat Pursuer 300 | . 60 . 240 . Influence Decreases 954 | 50 247 191 404 62 Entered New Map 138 | . . 80 26 32 Time Decay 746 | 50 227 111 338 20 Lost Part 50 | . 20 . 20 10 Lost Ally 20 | . . . 20 . Squads Dispatched 5 | . 4 . . 1 Investigation 4 | . 4 . . . Extermination . | . . . . . Reinforcement . | . . . . . Assault 1 | . . . . 1 Garrison . | . . . . . Intercept . | . . . . . Searches Triggered . | . . . . . Construction Impeded . | . . . . . Haulers Reinforced . | . . . . . Active Scanning Responses . | . . . . . Cargo Convoy Interrupts . | . . . . . Stealth | -11 -10 -10 -10 -7 --------- Run | Yrd Mat Min Sub Rec Distress Signals . | . . . . . Communications Jammed . | . . . . . Distress Signals . | . . . . . Times Spotted 63 | . 22 3 37 1 Peak Tracking Total 6 | . 4 3 6 1 Tactical Retreats 10 | . 4 . 6 . Traps | -11 -10 -10 -10 -7 ------- Run | Yrd Mat Min Sub Rec Traps Triggered 4 | . 3 . 1 . Indirectly . | . . . . . Trap Hack Attempts . | . . . . . Triggered . | . . . . . Disarmed . | . . . . . Reprogrammed . | . . . . . Reused . | . . . . . Traps Extracted . | . . . . . Installed 1 | . . . 1 . Triggered . | . . . . . Machines | -11 -10 -10 -10 -7 ---------- Run | Yrd Mat Min Sub Rec Machines Disabled 3 | . . 1 2 . Max in Single Turn 1 | . . 1 1 . Machines Repaired . | . . . . . Machines Dismantled . | . . . . . Machines Sabotaged . | . . . . . Overloaded Fab Kills . | . . . . . Hacking | -11 -10 -10 -10 -7 --------- Run | Yrd Mat Min Sub Rec Machines Accessed 15 | . 10 . 3 2 Terminals 7 | . 7 . . . Fabricators . | . . . . . Repair Stations 1 | . 1 . . . Recycling Units 4 | . 2 . . 2 Scanalyzers . | . . . . . Garrison Access . | . . . . . Total Hacks 39 | . 30 . 4 5 Successful 24 | . 18 . 4 2 Failed 15 | . 12 . . 3 Catastrophic 1 | . 1 . . . Database Lockouts . | . . . . . Manual 31 | . 27 . . 4 Terminals 22 | . 22 . . . Fabricators . | . . . . . Repair Stations 2 | . 2 . . . Recycling Units 11 | . 6 . . 5 Scanalyzers . | . . . . . Garrison Access . | . . . . . Terminal Hacks 9 | . 5 . 4 . Record 1 | . . . 1 . Robot Analysis 4 | . 4 . . . Prototype ID Bank 1 | . 1 . . . Open Door 1 | . . . 1 . Proto ID Catalog 1 | . . . 1 . Release Object 1 | . . . 1 . Fabricator Hacks . | . . . . . Repair Station Hacks 2 | . 2 . . . Scan Component 1 | . 1 . . . Repair 1 | . 1 . . . Recycling Unit Hacks 1 | . . . . 1 Retrieve Matter 1 | . . . . 1 Scanalyzer . | . . . . . Garrison Access Hacks . | . . . . . Unauthorized Hacks 12 | . 11 . . 1 Terminals 9 | . 9 . . . Track 1 | . 1 . . . Botnet 3 | . 3 . . . Skim 5 | . 5 . . . Fabricators . | . . . . . Repair Stations . | . . . . . Recycling Units 3 | . 2 . . 1 Mask 1 | . . . . 1 Tunnel 2 | . 2 . . . Scanalyzers . | . . . . . Garrison Access . | . . . . . Data Cores Recovered . | . . . . . Used . | . . . . . Hacking Detections 8 | . 7 . . 1 Full Trace Events . | . . . . . Feedback Events . | . . . . . Feedback Blocked . | . . . . . Robot Schematics Acquired . | . . . . . Robots Built . | . . . . . Authchips . | . . . . . Time . | . . . . . Total Robot Build Rating . | . . . . . Part Schematics Acquired . | . . . . . Parts Built . | . . . . . Authchips . | . . . . . Time . | . . . . . Total Part Build Rating . | . . . . . Part Studies Acquired . | . . . . . Parts Repaired 1 | . 1 . . . Time 26 | . 26 . . . Parts Recycled . | . . . . . Recycled Matter . | . . . . . Retrieved Matter . | . . . . . Retrieved Components . | . . . . . Parts Scanalyzed . | . . . . . Part Schematics Acquired . | . . . . . Parts Damaged . | . . . . . Bothacking | -11 -10 -10 -10 -7 ------------ Run | Yrd Mat Min Sub Rec Used RIF Installer . | . . . . . Robots Hacked . | . . . . . Non-combat . | . . . . . Combat . | . . . . . Robot Hacks Applied . | . . . . . Relay Couplers Released . | . . . . . Fabnet Peak Effective % . | . . . . . Robots Rewired . | . . . . . Allies Hacked . | . . . . . Hacks Repelled . | . . . . . Allies | -11 -10 -10 -10 -7 -------- Run | Yrd Mat Min Sub Rec Total Allies 1 | . . 1 . . Largest Group 1 | . . 1 1 . Highest-Rated Group 31 | . . 31 31 . Highest-Rated Ally 31 | . . 31 31 . Total Orders . | . . . . . Ally Attacks 6 | . . . 6 . Total Damage 42 | . . . 42 . Kills . | . . . . . Allies Corrupted . | . . . . . Allies Melted . | . . . . . Intel | -11 -10 -10 -10 -7 ------- Run | Yrd Mat Min Sub Rec Active Infowar (turns) 7848 | 375 1187 837 5449 . Sensors 3274 | . . . 3274 . Terrain 3812 | . . . 3812 . Structural 148 | . 148 . . . Seismic 2627 | 375 1187 837 228 . Robot Analysis Total 4 | . 4 . . . Derelict Logs Recovered 2 | . . . 2 . Drone Launches . | . . . . . Drone Recoveries . | . . . . . Exploration | -11 -10 -10 -10 -7 ------------- Run | Yrd Mat Min Sub Rec Turns Passed 37777 | 473 1324 837 35095 48 Spaces Moved 13151 | 232 623 403 11869 24 Core 17 | 17 . . . . Treads 2237 | 215 592 403 1027 . Legs 8699 | . . . 8699 . Wheels 2198 | . 31 . 2143 24 Hover . | . . . . . Flight . | . . . . . Fastest Speed 50 | 50 100 160 100 90 Average Speed 259 | 151 168 160 270 170 Slowest Speed 330 | 160 320 160 330 210 Overloaded Moves . | . . . . . Propulsion Burnouts . | . . . . . Robots Hopped . | . . . . . Potential Cave-ins 2 | . . . 2 . Cave-ins Triggered . | . . . . . Exploration Rate (%) 53 | 8 93 64 98 5 Regions Visited 4 Branch Regions 3 Pre-discovered Areas 5 | . 2 . 3 . Known Exits Taken 2 | . 1 1 . . Unknown Exits Taken 2 | 1 . . 1 . Scrap Searched 21 | . . 1 20 . Spaces Dug 111 | . 5 . 106 . Terrain Destroyed 665 | . 7 25 626 7 Melee . | . . . . . Projectile 11 | . 7 . 4 . AOE 654 | . . 25 622 7 Terrain Rammed . | . . . . . Walls Destroyed . | . . . . . Machines Disabled . | . . . . . Actions | -11 -10 -10 -10 -7 --------- Run | Yrd Mat Min Sub Rec Total 16322 | 301 796 595 14602 28 Wait 2569 | 27 94 174 2274 . Move 13147 | 231 622 402 11868 24 Hop . | . . . . . Pick Up 96 | 10 8 6 72 . Fast Attach 39 | 6 5 2 26 . Attach 21 | 1 4 . 16 . Detach 13 | . 3 . 10 . Swap 29 | . 6 1 22 . Drop 95 | 1 8 7 78 1 Fire 292 | 25 45 3 216 3 Melee . | . . . . . Ram . | . . . . . Kick . | . . . . . Crush 1 | . 1 . . . Escape Stasis . | . . . . . Rewire . | . . . . . Trap 1 | . . . 1 . Miscellaneous 19 | . . . 19 . Route ------- -11/Scrapyard -10/Materials (discovered 6 exits: *Mat x3 / *Min x2 / Sub) -10/Mines (discovered 2 exits: *Mat / *Sub) -10/Subcaves (discovered 3 exits: *Mat x2 / *Rec) -7/Recycling History --------- Turn | Location | Event 6 | -11/Scrapyard | Discovered new exit (range 16) 474 | -11/Scrapyard | Entered Materials 475 | -10/Materials | Build established: Mutant 888 | -10/Materials | Discovered new exit (range 13) 919 | -10/Materials | Discovered new exit (range 16) 1159 | -10/Materials | Learned Storage trap positions 1199 | -10/Materials | Discovered new exit (range 12) 1237 | -10/Materials | Learned location of 2 exits from Subcaves 1307 | -10/Materials | Identified exit to Mines 1307 | -10/Materials | Identified exit to Materials 1307 | -10/Materials | Identified exit to Subcaves 1367 | -10/Materials | Learned Storage stockpile data 1477 | -10/Materials | Learned Storage emergency access door positions 1502 | -10/Materials | Repaired Assault Rifle? 1544 | -10/Materials | Learned location of 2 exits from Materials 1798 | -10/Materials | Entered Mines 1819 | -10/Mines | Discovered exit to Materials (range 11) 2072 | -10/Mines | Found a damaged Exp. Sensor Array with a note attached 2076 | -10/Mines | Found Prototype Device 2081 | -10/Mines | Assembled infested the area 2086 | -10/Mines | Assisted by a Guerilla fighting off Assembled 2219 | -10/Mines | Discovered exit to Subcaves (range 6) 2454 | -10/Mines | Received a Rocket Launcher from a helpful Derelict 2535 | -10/Mines | Met a Derelict testing a Signal Generator 2544 | -10/Mines | Found Signal Generator 2635 | -10/Mines | Entered Subcaves 2635 | -10/Subcaves | Accompanied by 1 ally 2636 | -10/Subcaves | Identified exit to Materials 2662 | -10/Subcaves | Learned location of Mines (-10) 2667 | -10/Subcaves | Discovered new exit (range 11) 2964 | -10/Subcaves | Shifting Twisted Machinery released Sub. Power Source 2965 | -10/Subcaves | Shifting Twisted Machinery released Battle Rifle 3677 | -10/Subcaves | A swath of the cavern ceiling suddenly collapsed 3678 | -10/Subcaves | Shifting Twisted Machinery released Mak. Power Source 3972 | -10/Subcaves | Shifting Twisted Machinery released Battle Rifle 5404 | -10/Subcaves | Build established: Scavenger-Mutant 7463 | -10/Subcaves | Core integrity fell below 50% 7630 | -10/Subcaves | Build established: Mutant 8265 | -10/Subcaves | Disturbed a concealed Subdweller 8676 | -10/Subcaves | Build established: Subdweller-Mutant 9095 | -10/Subcaves | Learned location of Zion (-6) 9095 | -10/Subcaves | Met a Zionite searching for "candidates" 9300 | -10/Subcaves | Visited 4L-MR0's lab 9318 | -10/Subcaves | Found Tower Shield 9319 | -10/Subcaves | Attached Tower Shield, gained temporary slots: Power, Propulsion x2, Utility x2, Weapon x2 12315 | -10/Subcaves | Build established: Subdweller-Tank 12996 | -10/Subcaves | Shifting Twisted Machinery released Battle Cannon 13001 | -10/Subcaves | Shifting Twisted Machinery released Sub. Monowheel 15610 | -10/Subcaves | Ambushed by Subdweller buried in earth 16722 | -10/Subcaves | Disturbed a concealed Subdweller 16902 | -10/Subcaves | Ambushed by Subdweller buried in earth 21670 | -10/Subcaves | Ambushed by Subdweller buried in earth 21672 | -10/Subcaves | Core integrity fell below 20% 32083 | -10/Subcaves | Build established: Hauler-Mutant 36785 | -10/Subcaves | Found SUBCON Basin 37730 | -10/Subcaves | Entered Recycling 37778 | -7/Recycling | Destroyed by Y-54 Guardian with Gatling Laser Last Messages --------------- 37264_ Dropped Scrap Shield Fragment. 37264_ Acquired Scrap Shield Fragment. LOCATION=UNKNOWN GOAL=ESCAPE 37733_ Connecting with Recycling Unit... 37733_ Current location identified: Recycling 37764_ Y-54 Guardian springs to life. 37769_ Sub. Beam Cannon shoots sparks and powers down. 37771_ Dropped Humpback. 37773_ Signal Generator broadcasts a burst of procedurally generated transmissions. 37773_ ALERT: Intercepting significant anomalous signal. Dispatching assault force. 37775_ Grenade Launcher destroyed. 37777_ Connecting with Recycling Unit... >>Trojan(Mask) Trojan loaded successfully. Testing... Masking routine running. Map ----- +----------------------------------------------------+ | ?????????????????????????????????? | | ?????????????????????????????????? | | ?????????????????????????????????? | | ?????????????????????????????????? | | ?????????????????????????????????? | | ??????#####??????????????????????? | | ??????# #??????????????????????? | | ????### #??????????????????????? | | ????#"" #??????????????????????? | | ????#"Y #??????????????????????? | | ????#"" #??????????????????????? | | ????### #??????????????????????? | | ??????# #??????????????????????? | | ??????# #??????????????????????? | | ??????# #??????????????????????? | | ?????## /!##?????????????????????? | | ?????# =&*#?????????????????????? | | ?????# =&!!#?????????????????????? | | ?????# &][]#?????????????????????? | | ?????# &[!#?????????????????????? | | ?????# [#?????????????????????? | | ?????## #?????????????????????? | | ?????## ##????????????????????? | | ?????# ""#????????????????????? | | ????## Y Y"#????????????????????? | | ????# @""#????????????????????? | | ????# ###????????????????????? | | ????### #??????????????????????? | | ????? #??????????????????????? | | ???? #??????????????????????? | | ??? #??????????????????????? | | ??# # ??????????????????????? | | ??# # ??????????????????????? | | ??# ?# ??????????????????????? | | ??# ?# ??????????????????????? | | ??#??# ??????????????????????? | | ?????######??????????????????????? | | ?????????????????????????????????? | | ?????????????????????????????????? | | ?????????????????????????????????? | | ?????????????????????????????????? | | ?????????????????????????????????? | | ?????????????????????????????????? | | ?????????????????????????????????? | | ?????????????????????????????????? | | ?????????????????????????????????? | | ?????????????????????????????????? | | ?????????????????????????????????? | | ?????????????????????????????????? | | ?????????????????????????????????? | +----------------------------------------------------+ Best States ------------- Heat Dissipation 39 Energy Generation 15 Energy Capacity 300 Matter Stores 300 Matter Capacity 300 Sight Range 16 Robot Scan Range 14 Terrain Scan Range 16 Terrain Scan Density 10 Armor Coverage 2800 Evasion (%) 55 Recoil Reduction 2 Item Schematics ----------------- None Robot Schematics ------------------ None Fabricated ------------ Nothing Repaired ---------- Assault Rifle | 50% | -10/Materials Studied --------- None Alien Tech Used ----------------- None Achievements -------------- None Challenges ------------ None Game ------ Seed NovaOpticalGriptreads Manual? 0 Play Time 02:38:30 Cumulative 65.9 hours Start 2025.11.09 @ 19:13:54 End 2025.11.09 @ 22:31:54 Sessions 3 Manual Loads 0 Difficulty Rogue Special Mode None Game No. 27 Rogue 26 Adventurer 1 Explorer 0 Win Type - Total 2 Types 1/0/1/0/0/0/0/0/0/0 Lore% 28 Gallery% 35 Achievement% 30 Wizard Run 0 Options --------- Layout 2 ASCII 0 Keyboard 1 Movement Vi Keybinds 1 Fullscreen 2 Font 32/Terminus Map View 50x44 Zoom Use 0% Tactical HUD 1 Map Filters NONE Filters NONE Steam 1 RUN: f5cdd425-1f5e-4b0c-a241-d0d9ebe6a464